[Event "2nd Asian Nations Team Cup U14 2019"]
[Site "Shenzhen"]
[Date "2019.12.25"]
[Round "9.4"]
[White "Huang, Yuen Tung"]
[Black "Foo, Jing Er Claire"]
[Result "0-1"]
[ECO "B51"]
[WhiteElo "1293"]
[BlackElo "1546"]
[Annotator "NA RC"]
[PlyCount "88"]
[EventDate "2019.12.19"]
[EventType "team-tourn"]
[EventCountry "CHN"]
[SourceTitle "playchess.com"]
[Source "ChessBase"]
[SourceQuality "1"]
[WhiteTeam "Hong Kong"]
[BlackTeam "Malaysia"]
[WhiteTeamCountry "HKG"]
[BlackTeamCountry "MAS"]
[TimeControl "5400+30"]

1. e4 c5 {[%emt 0:01:11]} 2. Nf3 {[%emt 0:00:06]} d6 {[%emt 0:00:05]} 3. Bb5+ {[%emt 0:00:05]} Nd7 {[%emt 0:00:06]} 4. O-O {[%emt 0:00:10]} a6 {[%emt 0:00:03]} 5. Bxd7+ {[%emt 0:00:24]} Qxd7 {[%emt 0:00:57]} 6. Nc3 {[%emt 0:00:17]} e6 {[%emt 0:00:29]} 7. d4 {[%emt 0:02:02]} cxd4 {[%emt 0:00:19]} 8. Qxd4 {[%emt 0:00:56]} e5 {[%emt 0:00:47]} 9. Qd3 {[%emt 0:00:14]} Nf6 {[%emt 0:01:40]} 10. h3 {[%emt 0:01:38]} Be7 {[%emt 0:00:00]} 11. Be3 {[%emt 0:01:01]} O-O {[%emt 0:00:03]} 12. Rfd1 {[%emt 0:05:57]} h6 {[%emt 0:14:21]} 13. a4 {[%emt 0:13:50]} Rb8 {[%emt 0:00:00]} 14. Nd2 {[%emt 0:12:22]} Qc6 {[%emt 0:17:25]} 15. Nc4 {[%emt 0:00:55]} Be6 {[%emt 0:07:55]} 16. Nb6 {[%emt 0:13:49]} Nd7 {[%emt 0:00:00]} 17. Nbd5 {[%emt 0:06:43]} Bd8 {[%emt 0:00:02]} 18. Nb4 {[%emt 0:00:47]} Qc4 {[%emt 0:02:20]} 19. Qxc4 {[%emt 0:00:53]} Bxc4 {[%emt 0:00:06]} 20. Rxd6 {[%emt 0:01:24]} Nf6 {[%emt 0:01:47]} 21. Rdd1 {[%emt 0:01:44]} Ba5 {[%emt 0:01:57]} 22. Bc5 {[%emt 0:04:58]} Rfe8 {[%emt 0:00:11]} 23. f3 {[%emt 0:01:08]} Rbc8 {[%emt 0:02:50]} 24. Bd6 {[%emt 0:01:40]} Rcd8 {[%emt 0:01:24]} 25. Nba2 {[%emt 0:03:19]} Bb6+ {[%emt 0:00:49]} 26. Kh2 {[%emt 0:00:37]} Bd4 {[%emt 0:00:39]} 27. Bb4 {[%emt 0:01:08]} b6 {[%emt 0:07:02]} 28. b3 {[%emt 0:04:01]} Be6 {[%emt 0:00:00]} 29. Rab1 {[%emt 0:00:21]} Rc8 {[%emt 0:04:25]} 30. Rd2 {[%emt 0:06:20]} a5 {[%emt 0:03:36]} 31. Nb5 {[%emt 0:03:48]} axb4 {[%emt 0:00:00]} 32. Nd6 {[%emt 0:01:02]} Red8 {[%emt 0:00:00]} 33. Nxc8 {[%emt 0:00:32]} Rxc8 {[%emt 0:00:23]} 34. Re2 {[%emt 0:08:02]} Nh5 {[%emt 0:00:11]} 35. g3 {[%emt 0:00:00]} Bc3 {[%emt 0:01:24]} 36. Rd1 {[%emt 0:02:20]} Rc6 {[%emt 0:01:27]} 37. Rd3 {[%emt 0:04:57]} Bc8 {[%emt 0:02:12]} 38. Nxc3 {[%emt 0:00:51]} bxc3 {[%emt 0:00:12]} 39. Ree3 {[%emt 0:00:00]} Ba6 {[%emt 0:06:13]} 40. Rxc3 {[%emt 0:00:00]} Rd6 {[%emt 0:02:35]} 41. h4 {[%emt 0:01:20]} Rd2+ {[%emt 0:00:00]} 42. Kg1 {[%emt 0:03:15]} Nxg3 {[%emt 0:02:35]} 43. Rc6 {[%emt 0:00:37]} Bf1 {[%emt 0:03:33]} 44. Rxb6 {[%emt 0:00:00]} Rg2# {[%emt 0:00:21]} 0-1

[Event "2nd Asian Nations Team Cup U14 2019"]
[Site "Shenzhen"]
[Date "2019.12.25"]
[Round "9.6"]
[White "Meng, Yihan"]
[Black "Erkhes, Bayartnar"]
[Result "0-1"]
[ECO "C54"]
[WhiteElo "1787"]
[BlackElo "1937"]
[Annotator "NA RC"]
[PlyCount "128"]
[EventDate "2019.12.19"]
[EventType "team-tourn"]
[EventCountry "CHN"]
[SourceTitle "playchess.com"]
[Source "ChessBase"]
[SourceQuality "1"]
[WhiteTeam "China"]
[BlackTeam "Mongolia"]
[WhiteTeamCountry "CHN"]
[BlackTeamCountry "MGL"]
[TimeControl "5400+30"]

{[%evp 10,122,25,12,22,32767,32767,13,32767,12,20,32767,19,0,0,0,0,-7,0,-52,-42,-36,-50,-93,-26,-33,-22,-55,-1,0,0,0,0,-40,-19,-57,-27,-54,-14,-42,0,-145,-168,-127,-87,-158,-77,-52,-72,-67,-78,-79,-61,-237,-235,-498,-139,-133,-128,32767,32767,32767,32767,32767,32767,32767,32767,32767,-12,-467,-108,-85,-83,-87,-106,-115,-131,-96,-60,-74,0,-115,-75,-134,-152,32767,32767,32767,32767,32767,32767,32767,-345,-448,-290,-302,-409,-397,-474,32767,32767,32767,32767,-485,-550,-561,-537,-2098,-9094,-29984,-29987,-29988,-29990,-29986,-29991]} 1. e4 {[%emt 0:00:00]} e5 {[%emt 0:00:00]} 2. Nf3 {[%emt 0:00:00]} Nc6 {[%emt 0:00:00]} 3. Bc4 {[%emt 0:00:00]} Bc5 {[%emt 0:00:00]} 4. c3 {[%emt 0:00:00]} Nf6 {[%emt 0:00:00]} 5. d3 {[%emt 0:00:00]} d6 {[%emt 0:00:00]} 6. O-O {[%emt 0:00:00]} h6 {[%emt 0:00:14]} 7. b4 {[%emt 0:00:28]} Bb6 {[%emt 0:00:05]} 8. a4 {[%emt 0:00:14]} a5 {[%emt 0:00:39] C54: Giuoco Piano: 4 c3 Nf6, main lines with 5 d4 and 5 d3} 9. b5 {[%emt 0:00:51]} Ne7 {[%emt 0:00:08]} 10. Nbd2 {[%emt 0:00:58]} O-O {[%emt 0:01:04]} 11. Bb3 {[%emt 0:00:56]} (11. Re1 Ng6 12. Bb3 Re8 13. Nc4 Bc5 14. h3 c6 15. Bd2 Be6 16. bxc6 bxc6 {½-½ (31) Nakamura,H (2793)-Xiong,J (2674) Saint Louis 2017}) 11... Ng6 {[%emt 0:01:26]} 12. Nc4 {[%emt 0:01:30]} Ba7 {[%emt 0:06:50]} 13. Ra2 $146 {[%emt 0:07:15]} ({Predecessor:} 13. Be3 c6 14. Bxa7 Rxa7 15. Ne3 Qd7 {½-½ (45) Goncharov,I (2399)-Aupi Royo,J (2385) ICCF email 2013}) 13... c6 {[%emt 0:11:23]} 14. Bd2 {[%emt 0:06:43]} ({White should try} 14. Ba3 $11 Bb8 15. Re1) 14... Re8 {[%emt 0:02:18]} 15. Re1 $1 {[%emt 0:01:56]} Qc7 {[%emt 0:13:19]} 16. Ne3 {[%emt 0:04:21]} (16. Be3 $15 Bxe3 17. Nxe3) 16... Bxe3 {[%emt 0:03:16]} (16... Nf4 $17 17. Qc2 Bd7) 17. Bxe3 {[%emt 0:05:36]} d5 {[%emt 0:04:30]} 18. Qc2 {[%emt 0:09:45]} Bg4 {[%emt 0:04:32]} 19. Nd2 $1 {[%emt 0:01:36]} Rad8 {[%emt 0:12:39]} 20. f3 {[%emt 0:00:42]} Be6 {[%emt 0:03:36]} 21. Qb2 {[%emt 0:13:22]} c5 {[%emt 0:04:37]} 22. Raa1 {[%emt 0:10:01]} b6 {[%emt 0:01:41]} 23. Rac1 {[%emt 0:00:53]} Qd7 {[%emt 0:11:23]} 24. g3 {[%emt 0:01:39]} Qb7 {[%emt 0:11:02]} 25. c4 {[%emt 0:06:57] [#]} (25. Rcd1 $11) 25... d4 $1 {[%emt 0:00:57]} 26. Bf2 {[%emt 0:00:04]} Qc7 {[%emt 0:00:24]} 27. Rcd1 {[%emt 0:03:41]} ({White should try} 27. h4) 27... Nh7 {[%emt 0:01:35]} (27... Bh3 $142 28. Ra1 Nh7) 28. h4 {[%emt 0:00:12]} f5 {[%emt 0:00:56]} 29. exf5 {[%emt 0:00:35]} Bxf5 {[%emt 0:00:07]} 30. Ne4 {[%emt 0:00:06]} Rf8 {[%emt 0:02:41]} 31. Rd2 $2 {[%emt 0:00:46]} (31. Qe2 $17 {keeps fighting.}) 31... Bxe4 {[%emt 0:00:07]} 32. fxe4 $2 {[%emt 0:00:02]} (32. Rxe4 {might work better.} Rxf3 33. Bd1) 32... Nf6 $2 {[%emt 0:00:48]} (32... Qc8 $19 33. Kh2 Nf6) 33. Bd1 {[%emt 0:02:33]} Qd7 {[%emt 0:00:14]} 34. Kg2 {[%emt 0:00:10]} Ng4 {[%emt 0:00:29]} 35. Qc2 {[%emt 0:02:53]} Rxf2+ {[%emt 0:00:30]} 36. Rxf2 {[%emt 0:00:14]} Ne3+ {[%emt 0:00:54]} 37. Rxe3 {[%emt 0:00:43]} dxe3 {[%emt 0:00:04]} 38. Rf5 {[%emt 0:02:00]} Ne7 {[%emt 0:03:53]} 39. Rxe5 $2 {[%emt 0:01:16] [#]} (39. Rf1 $1 $11) 39... Rf8 $2 (39... Qd6 $1 $19 {[%cal Rd6e5] is more deadly.} 40. Rh5 g6) 40. Bf3 {[%emt 0:00:48]} Qd6 {[%emt 0:00:48]} 41. Rxe7 {[%emt 0:02:56]} Qxe7 {[%emt 0:00:03]} 42. Qe2 {[%emt 0:00:01]} Qe5 {[%emt 0:00:15]} 43. Qxe3 {[%emt 0:00:07]} Qb2+ {[%emt 0:00:12]} 44. Kh3 {[%emt 0:01:32]} Qe5 {[%emt 0:00:27]} (44... Qd4 $15 45. Qxd4 cxd4) 45. Kg2 $1 {[%emt 0:01:03]} Re8 {[%emt 0:00:15]} 46. Qd2 {[%emt 0:01:58]} Rd8 {[%emt 0:00:30]} 47. Qe3 {[%emt 0:03:03]} Qb2+ {[%emt 0:00:54]} 48. Be2 {[%emt 0:02:28]} Re8 {[%emt 0:00:46]} 49. Kh3 {[%emt 0:00:38]} Qa1 {[%emt 0:00:12]} 50. Bf3 {[%emt 0:01:21]} Qxa4 {[%emt 0:00:56]} 51. Bh5 {[%emt 0:01:24]} Re7 {[%emt 0:01:01]} 52. Qf4 {[%emt 0:02:21] [#]} Qa1 $1 {[%emt 0:00:01]} 53. Qb8+ {[%emt 0:01:21]} Kh7 {[%emt 0:00:03]} 54. Qd6 {[%emt 0:00:05]} Qh1+ {[%emt 0:00:19]} 55. Kg4 {[%emt 0:00:03]} Qd1+ {[%emt 0:00:06]} 56. Kh3 {[%emt 0:00:34]} Qf1+ {[%emt 0:00:04]} 57. Kh2 {[%emt 0:00:17]} Qf6 {[%emt 0:00:25]} 58. Bg6+ {[%emt 0:00:19]} Kxg6 {[%emt 0:00:07]} 59. h5+ {[%emt 0:00:24]} Kh7 {[%emt 0:00:06]} 60. Qd8 {[%emt 0:00:08]} Qf2+ {[%emt 0:00:18]} 61. Kh3 {[%emt 0:00:07]} Re5 {[%emt 0:00:46]} 62. Qxb6 {[%emt 0:00:16]} Rxh5+ {[%emt 0:00:07]} 63. Kg4 {[%emt 0:00:04]} Rg5+ {[%emt 0:00:03]} 64. Kh3 {[%emt 0:00:10]} Qxg3# {[%emt 0:00:01]} 0-1

[Event "2nd Asian Nations Team Cup U14 2019"]
[Site "Shenzhen"]
[Date "2019.12.25"]
[Round "9.7"]
[White "Temuujin, Kherlen"]
[Black "Wang, Yuehan"]
[Result "1-0"]
[ECO "E29"]
[WhiteElo "1711"]
[BlackElo "1724"]
[Annotator "NA RC"]
[PlyCount "101"]
[EventDate "2019.12.19"]
[EventType "team-tourn"]
[EventCountry "CHN"]
[SourceTitle "playchess.com"]
[Source "ChessBase"]
[SourceQuality "1"]
[WhiteTeam "Mongolia"]
[BlackTeam "China"]
[WhiteTeamCountry "MGL"]
[BlackTeamCountry "CHN"]
[TimeControl "5400+30"]

1. d4 {[%emt 0:00:00]} Nf6 {[%emt 0:00:00]} 2. c4 {[%emt 0:00:00]} e6 {[%emt 0:00:00]} 3. Nc3 {[%emt 0:00:00]} Bb4 {[%emt 0:00:00]} 4. e3 {[%emt 0:00:15]} O-O {[%emt 0:00:00]} 5. Bd3 {[%emt 0:00:05]} c5 {[%emt 0:01:40]} 6. a3 {[%emt 0:05:19]} Bxc3+ {[%emt 0:00:12]} 7. bxc3 {[%emt 0:00:06]} d6 {[%emt 0:00:09]} 8. Ne2 {[%emt 0:00:45]} b6 {[%emt 0:00:21]} 9. O-O {[%emt 0:01:17]} Nc6 {[%emt 0:01:17]} 10. Ng3 {[%emt 0:10:39]} e5 {[%emt 0:00:00]} 11. d5 {[%emt 0:00:15]} Na5 {[%emt 0:00:00]} 12. e4 {[%emt 0:01:37]} Ba6 {[%emt 0:00:31]} 13. Qe2 {[%emt 0:00:09]} Qd7 {[%emt 0:00:12]} 14. Nf5 {[%emt 0:05:50]} g6 {[%emt 0:02:13]} 15. Nh6+ {[%emt 0:27:36]} Kg7 {[%emt 0:01:09]} 16. f4 {[%emt 0:00:49]} Ng8 {[%emt 0:07:47]} 17. Nxg8 {[%emt 0:01:35]} Kxg8 {[%emt 0:00:16]} 18. fxe5 {[%emt 0:00:44]} dxe5 {[%emt 0:00:06]} 19. Bh6 {[%emt 0:00:38]} Rfd8 {[%emt 0:05:29]} 20. Qf3 {[%emt 0:16:12]} Qe7 {[%emt 0:00:26]} 21. h4 {[%emt 0:00:33]} f6 {[%emt 0:00:18]} 22. Qxf6 {[%emt 0:03:57]} Qxf6 {[%emt 0:00:06]} 23. Rxf6 {[%emt 0:00:05]} Bxc4 {[%emt 0:00:11]} 24. Bxc4 {[%emt 0:04:00]} Nxc4 {[%emt 0:00:11]} 25. g4 {[%emt 0:12:54]} Nd6 {[%emt 0:03:17]} 26. Re1 {[%emt 0:00:08]} Nf7 {[%emt 0:00:19]} 27. Bc1 {[%emt 0:00:34]} Kg7 {[%emt 0:00:09]} 28. Ref1 {[%emt 0:00:50]} Nd6 {[%emt 0:00:48]} 29. h5 {[%emt 0:02:23]} Rd7 {[%emt 0:01:01]} 30. Re6 {[%emt 0:01:49]} Nxe4 {[%emt 0:00:31]} 31. Rxe5 {[%emt 0:00:28]} Nf6 {[%emt 0:00:57]} 32. h6+ {[%emt 0:00:17]} Kf7 {[%emt 0:02:41]} 33. g5 {[%emt 0:00:06]} Rd6 {[%emt 0:00:10]} 34. gxf6 {[%emt 0:00:18]} Rxf6 {[%emt 0:00:07]} 35. Rxf6+ {[%emt 0:00:09]} Kxf6 {[%emt 0:00:05]} 36. Re6+ {[%emt 0:00:07]} Kf7 {[%emt 0:00:08]} 37. Bg5 {[%emt 0:00:06]} Rf8 {[%emt 0:03:02]} 38. Rf6+ {[%emt 0:00:54]} Ke8 {[%emt 0:01:38]} 39. Rxf8+ {[%emt 0:00:10]} Kxf8 {[%emt 0:00:04]} 40. Kf2 {[%emt 0:00:06]} Ke8 {[%emt 0:00:04]} 41. Ke3 {[%emt 0:00:09]} b5 {[%emt 0:00:09]} 42. Ke4 {[%emt 0:00:20]} a5 {[%emt 0:00:06]} 43. d6 {[%emt 0:00:32]} Kd7 {[%emt 0:00:42]} 44. Kd5 {[%emt 0:00:06]} b4 {[%emt 0:00:03]} 45. cxb4 {[%emt 0:00:07]} cxb4 {[%emt 0:00:07]} 46. a4 {[%emt 0:00:11]} b3 {[%emt 0:00:39]} 47. Bc1 {[%emt 0:03:37]} g5 {[%emt 0:00:22]} 48. Ba3 {[%emt 0:00:06]} g4 {[%emt 0:02:13]} 49. Ke4 {[%emt 0:00:04]} b2 {[%emt 0:00:16]} 50. Bxb2 {[%emt 0:00:04]} Kxd6 {[%emt 0:00:04]} 51. Bc3 {[%emt 0:00:08] Kd5+} 1-0

[Event "2nd Asian Nations Team Cup U14 2019"]
[Site "Shenzhen"]
[Date "2019.12.25"]
[Round "9.8"]
[White "Zhao, Yunqing"]
[Black "Angar, Zoljargal"]
[Result "1/2-1/2"]
[ECO "D47"]
[WhiteElo "1542"]
[BlackElo "1696"]
[Annotator "NA RC"]
[PlyCount "159"]
[EventDate "2019.12.19"]
[EventType "team-tourn"]
[EventCountry "CHN"]
[SourceTitle "playchess.com"]
[Source "ChessBase"]
[SourceQuality "1"]
[WhiteTeam "China"]
[BlackTeam "Mongolia"]
[WhiteTeamCountry "CHN"]
[BlackTeamCountry "MGL"]
[TimeControl "5400+30"]

1. d4 {[%emt 0:00:00]} d5 {[%emt 0:00:00]} 2. c4 {[%emt 0:00:00]} c6 {[%emt 0:00:11]} 3. Nc3 {[%emt 0:00:00]} Nf6 {[%emt 0:00:21]} 4. Nf3 {[%emt 0:00:00]} e6 {[%emt 0:00:23]} 5. e3 {[%emt 0:00:00]} Nbd7 {[%emt 0:00:50]} 6. Bd3 {[%emt 0:00:00]} dxc4 {[%emt 0:00:35]} 7. Bxc4 {[%emt 0:00:03]} b5 {[%emt 0:01:52]} 8. Bd3 {[%emt 0:00:06]} Bb7 {[%emt 0:01:03]} 9. e4 {[%emt 0:00:04]} b4 {[%emt 0:08:32]} 10. Na4 {[%emt 0:00:08]} Be7 {[%emt 0:04:04]} 11. O-O {[%emt 0:00:52]} O-O {[%emt 0:00:28]} 12. Qc2 {[%emt 0:01:40]} h6 {[%emt 0:01:43]} 13. Be3 {[%emt 0:01:34]} Qa5 {[%emt 0:02:02]} 14. h3 {[%emt 0:02:15]} e5 {[%emt 0:02:54]} 15. dxe5 {[%emt 0:03:36]} Nxe5 {[%emt 0:01:29]} 16. Nxe5 {[%emt 0:00:13]} Qxe5 {[%emt 0:00:20]} 17. f4 {[%emt 0:00:18]} Qa5 {[%emt 0:01:13]} 18. Nc5 {[%emt 0:02:01]} Bxc5 {[%emt 0:04:07]} 19. Qxc5 {[%emt 0:00:15]} Qxc5 {[%emt 0:02:40]} 20. Bxc5 {[%emt 0:00:08]} Rfd8 {[%emt 0:03:49]} 21. Rad1 {[%emt 0:04:22]} a5 {[%emt 0:02:54]} 22. Bc2 {[%emt 0:00:18]} Ba6 {[%emt 0:01:47]} 23. Rfe1 {[%emt 0:00:10]} Bc4 {[%emt 0:03:04]} 24. b3 {[%emt 0:00:49]} Bb5 {[%emt 0:01:11]} 25. Kf2 {[%emt 0:02:30]} Rd7 {[%emt 0:03:51]} 26. e5 {[%emt 0:17:17]} Rxd1 {[%emt 0:00:57]} 27. Rxd1 {[%emt 0:00:10]} Nd5 {[%emt 0:00:12]} 28. f5 {[%emt 0:02:49]} Re8 {[%emt 0:09:18]} 29. Re1 {[%emt 0:01:26]} Nf4 {[%emt 0:01:12]} 30. Kf3 {[%emt 0:05:32]} Nd3 {[%emt 0:03:17]} 31. Bxd3 {[%emt 0:00:05]} Bxd3 {[%emt 0:00:08]} 32. g4 {[%emt 0:00:14]} g6 {[%emt 0:20:21]} 33. Kf4 {[%emt 0:00:23]} g5+ {[%emt 0:02:41]} 34. Kf3 {[%emt 0:00:06]} Kg7 {[%emt 0:01:48]} 35. e6 {[%emt 0:01:34]} fxe6 {[%emt 0:02:51]} 36. fxe6 {[%emt 0:00:19]} Kf6 {[%emt 0:02:46]} 37. e7 {[%emt 0:00:14]} Bg6 {[%emt 0:01:15]} 38. Ke3 {[%emt 0:01:12]} Ke5 {[%emt 0:01:57]} 39. Rd1 {[%emt 0:00:09]} h5 {[%emt 0:00:48]} 40. Rd8 {[%emt 0:05:40]} hxg4 {[%emt 0:00:45]} 41. hxg4 {[%emt 0:00:04]} Bf7 {[%emt 0:00:47]} 42. a3 {[%emt 0:00:26]} bxa3 {[%emt 0:00:32]} 43. Bxa3 {[%emt 0:00:05]} Bg6 {[%emt 0:01:03]} 44. Rd6 {[%emt 0:02:16]} Bf7 {[%emt 0:00:40]} 45. Rxc6 {[%emt 0:00:12]} Bxb3 {[%emt 0:01:12]} 46. Rg6 {[%emt 0:03:24]} Be6 {[%emt 0:01:28]} 47. Rxg5+ {[%emt 0:00:20]} Kf6 {[%emt 0:00:22]} 48. Kf4 {[%emt 0:00:49]} Rc8 {[%emt 0:00:27]} 49. Rxa5 {[%emt 0:02:09]} Rc4+ {[%emt 0:00:14]} 50. Ke3 {[%emt 0:00:11]} Kf7 {[%emt 0:00:40]} 51. g5 {[%emt 0:00:56]} Rg4 {[%emt 0:00:23]} 52. Ra8 {[%emt 0:00:09]} Bd7 {[%emt 0:00:26]} 53. Rf8+ {[%emt 0:01:03]} Kg6 {[%emt 0:00:51]} 54. Rd8 {[%emt 0:11:19]} Ba4 {[%emt 0:02:21]} 55. Rg8+ {[%emt 0:03:51]} Kf7 {[%emt 0:00:25]} 56. Rf8+ {[%emt 0:00:41]} Kg6 {[%emt 0:00:06]} 57. Rf4 {[%emt 0:01:27]} Rxf4 {[%emt 0:00:58]} 58. Kxf4 {[%emt 0:00:06]} Kf7 {[%emt 0:00:17]} 59. Ke5 {[%emt 0:00:25]} Bb5 {[%emt 0:00:08]} 60. Bb4 {[%emt 0:01:24]} Ba4 {[%emt 0:00:12]} 61. Kf5 {[%emt 0:00:30]} Bc2+ {[%emt 0:00:21]} 62. Kg4 {[%emt 0:00:12]} Bd1+ {[%emt 0:00:11]} 63. Kh4 {[%emt 0:00:03]} Bc2 {[%emt 0:00:05]} 64. Kh5 {[%emt 0:00:09]} Bd3 {[%emt 0:00:07]} 65. Kh6 {[%emt 0:00:13]} Bc2 {[%emt 0:00:06]} 66. Kh5 {[%emt 0:00:00]} Bd1+ {[%emt 0:00:07]} 67. Kh4 {[%emt 0:00:01]} Bc2 {[%emt 0:00:04]} 68. Kg3 {[%emt 0:00:03]} Bd3 {[%emt 0:00:21]} 69. Kf4 {[%emt 0:00:04]} Bc2 {[%emt 0:00:29]} 70. Ke5 {[%emt 0:00:06]} Ba4 {[%emt 0:00:07]} 71. Kd6 {[%emt 0:00:05]} Bb5 {[%emt 0:00:07]} 72. Bc3 {[%emt 0:00:20]} Ba4 {[%emt 0:00:12]} 73. Bf6 {[%emt 0:00:23]} Bb5 {[%emt 0:00:06]} 74. Ke5 {[%emt 0:00:21]} Ba4 {[%emt 0:00:06]} 75. Kf5 {[%emt 0:00:15]} Bc2+ {[%emt 0:00:06]} 76. Kf4 {[%emt 0:00:04]} Ba4 {[%emt 0:00:12]} 77. Ke3 {[%emt 0:00:31]} Bc2 {[%emt 0:00:14]} 78. Kd4 {[%emt 0:00:25]} Ba4 {[%emt 0:00:33]} 79. Ke5 {[%emt 0:00:47]} Bc2 {[%emt 0:01:13]} 80. Kd5 {[%emt 0:00:23]} 1/2-1/2

[Event "2nd Asian Nations Team Cup U14 2019"]
[Site "Shenzhen"]
[Date "2019.12.25"]
[Round "9.13"]
[White "Li, Shanglin"]
[Black "Han, Xuqian Ben"]
[Result "1-0"]
[ECO "E62"]
[WhiteElo "2020"]
[BlackElo "1714"]
[Annotator "NA RC"]
[PlyCount "67"]
[EventDate "2019.12.19"]
[EventType "team-tourn"]
[EventCountry "CHN"]
[SourceTitle "playchess.com"]
[Source "ChessBase"]
[SourceQuality "1"]
[WhiteTeam "China"]
[BlackTeam "Hong Kong"]
[WhiteTeamCountry "CHN"]
[BlackTeamCountry "HKG"]
[TimeControl "5400+30"]

{[%evp 8,63,25,32767,32767,32767,32767,32767,65,32767,32767,32767,32767,-30,-4,32767,32767,-58,33,12,9,-15,-3,-15,0,-20,-17,-16,-19,-27,32767,32767,11,1,0,-7,29,25,33,21,66,54,48,40,52,39,225,253,766,683,795,842,816,819,1442,1373,1245,1392]} 1. d4 {[%emt 0:00:00]} Nf6 {[%emt 0:00:00]} 2. c4 {[%emt 0:00:00]} g6 {[%emt 0:00:00]} 3. g3 {[%emt 0:00:04]} Bg7 {[%emt 0:00:00]} 4. Bg2 {[%emt 0:00:13]} O-O {[%emt 0:00:02]} 5. Nc3 {[%emt 0:00:37]} d6 {[%emt 0:00:08]} 6. Nf3 {[%emt 0:00:39]} Nc6 {[%emt 0:00:03]} 7. O-O {[%emt 0:00:14]} Bg4 {[%emt 0:00:09]} 8. d5 {[%emt 0:01:23]} Na5 {[%emt 0:00:06]} 9. Nd2 {[%emt 0:00:16]} c5 {[%emt 0:00:11]} 10. dxc6 {[%emt 0:01:31] E62: King's Indian: Fianchetto: 6...c6 and Panno Variation (6...Nc6) without ...a6} (10. Rb1 $14) (10. h3 Bd7 11. Qc2 a6 12. b3 b5 13. Bb2 Rb8 14. Rab1 e5 15. e4 Nh5 16. Ne2 f5 17. f4 bxc4 18. fxe5 cxb3 19. axb3 dxe5 20. exf5 gxf5 21. Ra1 Bb5 22. Nc4 Nxb3 23. Qxb3 Bxc4 24. Qxc4 Rxb2 {0-1 (41) Donchenko,A (2618)-Ziska,H (2533) Le Blanc Mesnil 2019}) 10... Nxc6 {[%emt 0:02:55]} 11. b3 {[%emt 0:01:42]} d5 {[%emt 0:11:01]} 12. Bb2 {[%emt 0:02:26]} dxc4 $146 {[%emt 0:11:43]} ({Black should play Predecessor:} 12... d4 $15 13. Na4 Qc8 (13... e5 14. Nc5 Qc7 15. h3 Bf5 16. Nde4 Nxe4 17. Nxe4 Rad8 {½-½ (61) Godzwon,I (2322)-Raczynski,K (2157) Szklarska Poreba 2019})) 13. Nxc4 {[%emt 0:00:32]} Qc8 {[%emt 0:01:18]} 14. Re1 {[%emt 0:05:41]} Rd8 {[%emt 0:03:34]} 15. Qc1 {[%emt 0:00:43]} Be6 {[%emt 0:17:18]} 16. Nb5 {[%emt 0:09:05]} Bd5 {[%emt 0:11:23]} 17. e4 {[%emt 0:00:47]} Bxc4 {[%emt 0:00:03]} 18. Qxc4 {[%emt 0:01:07]} a6 {[%emt 0:00:20]} 19. Na3 {[%emt 0:00:18]} e5 {[%emt 0:00:54]} 20. Rac1 {[%emt 0:01:52]} Qd7 {[%emt 0:02:43]} 21. Qf1 {[%emt 0:02:03]} Qe8 {[%emt 0:01:34]} 22. Nc4 {[%emt 0:01:36]} b5 {[%emt 0:03:13]} 23. Nb6 {[%emt 0:00:20]} Rab8 {[%emt 0:00:18]} 24. Nd5 {[%emt 0:00:58]} Nxd5 {[%emt 0:00:48]} 25. exd5 {[%emt 0:00:01]} Nb4 {[%emt 0:00:07]} 26. f4 {[%emt 0:00:34]} Nxd5 $2 {[%emt 0:00:33]} (26... Qd7 $14) 27. Bxe5 {[%emt 0:00:11]} Ra8 $2 {[%emt 0:02:10]} (27... Qe6 28. Bxb8 Qb6+ 29. Kh1 Qxb8) 28. Bxg7 {[%emt 0:00:26]} Ne3 {[%emt 0:00:08]} 29. Qf2 {[%emt 0:00:09]} Kxg7 {[%emt 0:00:53]} 30. Rxe3 {[%emt 0:00:09]} Rac8 {[%emt 0:00:15]} 31. Rxe8 {[%emt 0:00:17]} Rxc1+ {[%emt 0:00:09]} 32. Re1 $18 {[%emt 0:00:02]} Rdd1 {[%emt 0:00:10]} 33. Rxd1 {[%emt 0:00:01]} Rxd1+ {[%emt 0:00:08]} 34. Bf1 {[%emt 0:00:06]} 1-0